bitfinex-derivatives/quotes_SOLF0:USTF0_20251211
["timestamp","ask_amount","ask_price","bid_price","bid_amount"]
[1765495251183,1.27898857,136.16,136.1,3.1]
[1765495251388,4.60898857,136.16,136.11,3.1]
[1765495251589,3.33,136.16,136.14,6.6094]
[1765495251988,3.37696815,136.16,136.14,6.66187399]
[1765495253394,3.37696815,136.16,136.14,0.05247399]
[1765495253590,0.04696815,136.16,136.14,0.05247399]
[1765495253795,0.04696815,136.16,136.14,3.15247399]
[1765495253994,0.04696815,136.16,136.14,9.76187399]
[1765495254386,0.04696815,136.16,136.15,3.1]
[1765495255788,3.37696815,136.16,136.14,0.05247399]
[1765495258201,0.04696815,136.16,136.14,3.15247399]
[1765495258503,3.37696815,136.16,136.14,0.05247399]
[1765495259899,1.27851868,136.2,136.14,0.05247399]
[1765495259900,1.27851868,136.2,136.15,3.1]
[1765495260100,62.5,136.22,136.18,3.1]
[1765495260288,62.5,136.22,136.19,3.1]
[1765495260289,65.83,136.22,136.19,3.1]
[1765495260596,3.33,136.21,136.16,102.8011]
[1765495260803,3.38488068,136.2,136.17,3.1529789]
[1765495261100,3.33,136.19,136.17,0.0529789]
[1765495262507,7.49237738,136.18,136.17,0.0529789]
[1765495264104,3.33,136.17,136.13,9.7099]
[1765495264999,3.33,136.17,136.07,69.31450599]
[1765495265000,3.33,136.15,136.14,0.05258622]
[1765495265300,7.49237738,136.15,136.14,0.05258622]
[1765495265505,3.33,136.14,136.11,6.6108]
[1765495265698,3.33,136.12,136.11,6.6108]
[1765495266096,4.16237738,136.13,136.11,6.6108]
[1765495266404,3.33,136.12,136.09,6.6116]
[1765495266604,0.04937098,136.12,136.09,9.761297]
[1765495267291,3.37937098,136.12,136.09,6.661297]
[1765495267699,3.37937098,136.12,136.09,0.049697]
[1765495267700,7.49237738,136.11,136.09,0.049697]
[1765495267900,3.33,136.1,136.09,0.049697]
[1765495270498,3.37937098,136.12,136.09,9.761597]
[1765495271592,3.37937098,136.12,136.09,6.661597]
[1765495271797,3.33,136.1,136.09,0.049697]
[1765495272691,3.33,136.1,136.04,102.8906]
[1765495272692,4.79,136.1,136.03,3.1]
[1765495272895,3.33,136.07,136.03,3.1]
[1765495273697,0.05123667,136.06,136.04,0.05353291]
[1765495274801,3.33,136.05,136.04,0.05353291]
[1765495275305,7.54361405,136.06,136.04,0.05353291]
[1765495275702,0.05123667,136.06,136.04,9.76773291]
[1765495275902,7.49237738,136.12,136.05,3.1]
[1765495276108,7.49237738,136.1,136.05,3.1]
[1765495276805,7.49237738,136.1,136.06,3.14644831]
[1765495276806,2.66286586,136.08,136.06,3.14644831]
[1765495277001,3.33,136.07,136.06,0.04644831]
[1765495282003,6.04286586,136.08,136.06,0.04644831]
[1765495283508,3.38,136.07,136.06,0.04644831]
[1765495284610,2.66286586,136.08,136.06,0.04644831]
[1765495284805,6.04286586,136.08,136.06,0.04644831]
[1765495285315,3.38,136.07,136.06,0.04644831]
[1765495286015,6.09232729,136.09,136.06,10.04974831]
[1765495286313,6.09232729,136.09,136.06,3.43644831]
[1765495288107,3.38,136.08,136.06,0.04644831]
[1765495288910,3.38,136.08,136.06,6.65954831]
[1765495290317,6.04286586,136.07,136.06,0.04644831]
[1765495291815,2.71232729,136.09,136.06,0.04644831]
[1765495292020,6.09232729,136.09,136.06,0.04644831]
[1765495292317,3.38,136.08,136.06,0.04644831]
[1765495292824,2.71232729,136.09,136.06,10.04984831]
[1765495293024,2.71232729,136.09,136.06,3.43644831]
[1765495293424,6.09232729,136.09,136.06,3.43644831]
[1765495293621,3.42946143,136.09,136.06,3.43644831]
[1765495293823,0.04946143,136.09,136.06,3.43644831]
[1765495294013,0.04946143,136.09,136.07,10.003]
[1765495295117,0.04946143,136.09,136.08,10.0025]
[1765495296726,3.42946143,136.09,136.08,6.6125]
[1765495297918,6.09232729,136.09,136.08,6.6125]
[1765495298114,6.09232729,136.09,136.07,6.613]
[1765495298320,3.38,136.08,136.07,6.613]
[1765495298930,0.04946143,136.09,136.08,6.6125]
[1765495301632,0.04946143,136.09,136.08,10.0025]
[1765495312929,0.04946143,136.09,136.08,3.1]
[1765495313936,0.04946143,136.09,136.08,9.7125]
[1765495314240,0.04946143,136.09,136.08,16.52700599]
[1765495314439,0.04946143,136.09,136.08,9.7125]
[1765495315538,0.04946143,136.09,136.08,6.6125]
[1765495316038,0.04946143,136.09,136.08,9.7125]
[1765495320952,0.04946143,136.09,136.08,16.57622689]
[1765495321147,0.04946143,136.09,136.08,9.7125]
[1765495322450,3.23,136.17,136.09,3.1]
[1765495322665,3.23,136.17,136.13,3.1]
[1765495322843,3.23,136.15,136.13,3.1]
[1765495323546,3.27745496,136.15,136.13,3.15205033]
[1765495323844,0.04745496,136.15,136.13,3.15205033]
[1765495325750,5.94032082,136.15,136.13,0.05205033]
[1765495327644,5.94032082,136.15,136.13,9.76205033]
[1765495328454,2.71032082,136.15,136.13,9.76205033]
[1765495329862,0.04745496,136.15,136.13,9.76205033]
[1765495332161,0.04745496,136.15,136.14,3.1]
[1765495334766,3.44745496,136.15,136.13,6.66205033]
[1765495337778,3.44745496,136.15,136.13,9.97205033]
[1765495338277,0.04745496,136.15,136.13,9.97205033]
[1765495338879,0.04745496,136.15,136.14,3.07]
[1765495339972,0.04745496,136.15,136.14,9.6796]
[1765495343275,0.04745496,136.15,136.14,3.07]
[1765495343482,3.16745496,136.15,136.13,3.12205033]
[1765495343680,0.04745496,136.15,136.13,3.12205033]
[1765495344877,0.04745496,136.15,136.14,6.6096]
[1765495345083,0.04745496,136.15,136.14,9.6796]
[1765495347287,3.12,136.22,136.18,3.07]
[1765495348179,3.12,136.2,136.19,0.04935954]
[1765495349790,4.58,136.2,136.19,0.04935954]
[1765495351091,3.12,136.2,136.19,0.04935954]
[1765495355192,7.32335898,136.21,136.19,3.11935954]
[1765495355394,3.12,136.2,136.19,0.04935954]
[1765495360297,3.12,136.2,136.19,6.65655954]
[1765495360599,0.04691925,136.21,136.19,3.11935954]
[1765495360799,0.04691925,136.21,136.2,3.07]
[1765495361997,0.04691925,136.21,136.2,9.6767]
[1765495364997,7.27643973,136.25,136.23,6.6052]
[1765495365794,65.6,136.26,136.23,3.07]
[1765495366098,0.03974086,136.25,136.23,3.12223416]
[1765495367600,0.03974086,136.25,136.24,9.6747]
[1765495368796,4.15643973,136.32,136.29,9.7523]
[1765495368993,3.12,136.31,136.26,3.15]
[1765495369498,3.12,136.31,136.27,9.7529]
[1765495369887,3.12,136.31,136.28,0.05546751]
[1765495370690,3.12,136.31,136.28,3.20546751]
[1765495370903,3.12,136.35,136.29,3.15]
[1765495371089,3.12,136.35,136.31,9.7513]
[1765495371289,3.12,136.34,136.32,0.05063748]
[1765495373897,3.12,136.34,136.32,3.20063748]
[1765495374104,3.12,136.35,136.32,3.20063748]
[1765495376806,3.12,136.35,136.32,0.05063748]
[1765495377107,3.12,136.34,136.32,0.05063748]
[1765495381105,3.12,136.34,136.32,3.20063748]
[1765495381809,3.12,136.34,136.32,0.05063748]
[1765495383008,7.27643973,136.34,136.32,0.05063748]
[1765495383310,3.12,136.33,136.32,0.05063748]
[1765495383711,3.12,136.32,136.24,3.15]
[1765495383911,3.12,136.32,136.21,3.15]
[1765495383912,3.12,136.27,136.21,3.15]
[1765495384123,3.12,136.26,136.22,3.15]
[1765495384718,3.17063748,136.25,136.23,0.05631475]
[1765495387406,7.27643973,136.24,136.23,0.05631475]
[1765495391616,3.12,136.23,136.16,62.42]
[1765495391917,7.27643973,136.2,136.16,3.15]
[1765495392218,4.15643973,136.18,136.16,6.6085]
[1765495392720,4.20716769,136.18,136.16,6.65554231]
[1765495392911,0.05072796,136.18,136.16,6.65554231]
[1765495393818,3.17072796,136.18,136.16,0.04704231]
[1765495394917,0.05072796,136.18,136.16,10.04554231]
[1765495395113,0.05072796,136.18,136.17,3.39]
[1765495397613,0.05072796,136.18,136.16,6.65554231]
[1765495397819,3.27072796,136.18,136.16,6.65554231]
[1765495398718,2.65942296,136.17,136.16,6.65554231]
[1765495402722,3.27072796,136.18,136.16,6.65554231]
[1765495403112,0.05072796,136.18,136.17,3.34]
[1765495407224,3.40072796,136.18,136.16,0.04704231]
[1765495407422,3.35,136.17,136.16,0.04704231]
[1765495407816,3.35,136.17,136.16,6.65554231]
[1765495409029,3.35,136.17,136.11,3.34]
[1765495409222,3.35,136.14,136.11,3.34]
[1765495409421,6.00942296,136.13,136.1,3.34]
[1765495409822,6.00942296,136.13,136.11,6.611]
[1765495410022,6.06403616,136.13,136.11,6.6598443]
[1765495411823,3.35,136.12,136.11,0.0488443]
[1765495412123,3.35,136.12,136.04,3.34]
[1765495412332,6.00942296,136.08,136.04,3.34]
[1765495412534,6.00942296,136.08,136.06,6.6134]
[1765495413038,6.0642759,136.08,136.06,6.66792124]
[1765495414935,0.05485294,136.08,136.07,3.34]
[1765495415242,0.05485294,136.08,136.06,10.00792124]
[1765495420946,0.05485294,136.08,136.07,3.34]
[1765495429447,0.05485294,136.08,136.07,9.953]
[1765495439953,6.01942296,136.13,136.11,3.31]
[1765495440258,3.36,136.12,136.07,3.31]
[1765495441058,0.04812098,136.11,136.1,6.6114]
[1765495441254,3.36,136.1,136.08,0.05079522]
[1765495441455,6.01942296,136.09,136.08,0.05079522]
[1765495442158,2.65942296,136.09,136.08,0.05079522]
[1765495442360,2.65942296,136.09,136.08,6.66329522]
[1765495442656,2.65942296,136.09,136.08,9.97329522]
[1765495442856,6.06754394,136.11,136.08,9.97329522]
[1765495444063,0.04812098,136.11,136.09,3.31]
[1765495444761,3.40812098,136.11,136.09,3.31]
[1765495444961,3.40812098,136.11,136.1,6.6115]
[1765495445461,0.04812098,136.11,136.1,6.6115]
[1765495445762,0.04812098,136.11,136.1,9.9215]
[1765495446165,3.40812098,136.11,136.1,6.6115]
[1765495447563,3.40812098,136.11,136.09,6.612]
[1765495447769,3.40812098,136.11,136.08,3.36079522]
[1765495448871,3.40812098,136.11,136.08,9.97329522]
[1765495452072,3.40812098,136.11,136.09,3.31]
[1765495454166,2.65942296,136.1,136.08,3.36079522]
[1765495454374,3.36,136.09,136.08,0.05079522]
[1765495464186,3.16812098,136.11,136.08,3.29079522]
[1765495467082,3.16812098,136.11,136.08,0.05079522]
[1765495468897,3.12,136.09,136.08,0.05079522]
[1765495480710,62.52,136.1,136.08,3.29079522]
[1765495481104,65.64,136.1,136.08,3.29079522]
[1765495481804,3.12,136.09,136.08,0.05079522]
[1765495484806,3.12,136.09,136.04,6.82969878]
[1765495484807,3.12,136.08,136.04,6.82969878]
[1765495485011,3.12,136.06,136.02,3.24]
[1765495485805,0.04868693,136.05,136.03,0.04707131]
[1765495486000,3.16868693,136.05,136.03,0.04707131]
[1765495488503,3.12,136.04,136.03,0.04707131]
[1765495489112,65.70868693,136.05,136.03,0.04707131]
[1765495489418,3.14,136.04,136.03,0.04707131]
[1765495496926,62.56868693,136.05,136.03,3.34707131]
[1765495497225,0.04868693,136.05,136.03,3.34707131]
[1765495499018,0.04868693,136.05,136.04,9.9145]
[1765495500328,62.54,136.08,136.05,3.3]
[1765495500629,62.54,136.08,136.07,3.3]
[1765495501130,62.54,136.08,136.04,6.82969878]
[1765495501131,62.54,136.08,136.06,3.3]
[1765495501321,62.59497348,136.08,136.06,3.35398094]
[1765495501519,62.59497348,136.08,136.07,3.3]
[1765495502420,62.59497348,136.08,136.07,9.913]
[1765495502626,0.05497348,136.08,136.07,9.913]
[1765495503026,0.05497348,136.08,136.07,3.3]
[1765495503923,3.14,136.12,136.08,3.3]
[1765495504126,62.54,136.13,136.08,3.3]
[1765495504533,62.54,136.13,136.1,3.3]
[1765495505030,62.58878953,136.13,136.1,3.3509156]
[1765495505732,62.58878953,136.13,136.11,3.3]
[1765495506127,62.58878953,136.13,136.12,3.3]
[1765495506334,0.04878953,136.13,136.12,3.3]
[1765495507732,3.18878953,136.13,136.1,3.3509156]
[1765495507932,3.18878953,136.13,136.1,0.0509156]
[1765495507933,3.14,136.11,136.1,0.0509156]
[1765495518647,5.80254385,136.11,136.1,0.0509156]
[1765495520645,3.14,136.11,136.1,0.0509156]
[1765495520945,5.80254385,136.11,136.1,0.0509156]
[1765495523143,12.41364385,136.11,136.1,0.0509156]
[1765495524444,12.41364385,136.11,136.06,6.6135]
[1765495524445,3.29,136.09,136.06,3.16]
[1765495524744,2.66254385,136.07,136.06,3.16]
[1765495526648,5.95254385,136.07,136.05,0.05015248]
[1765495526949,5.95254385,136.07,136.05,3.21015248]
[1765495527548,5.95254385,136.07,136.05,9.82415248]
[1765495528438,2.66254385,136.07,136.06,9.7735]
[1765495528644,0.04688689,136.08,136.07,3.16]
[1765495535445,3.33688689,136.08,136.05,9.82405248]
[1765495535642,2.66254385,136.07,136.05,9.82405248]
[1765495536046,2.66254385,136.07,136.06,3.16]
[1765495536656,5.99943074,136.08,136.06,9.7735]
[1765495538253,5.99943074,136.08,136.06,3.16]
[1765495542461,3.29,136.07,136.05,3.21015248]
[1765495542956,3.33688689,136.08,136.05,3.21015248]
[1765495543156,0.04688689,136.08,136.05,3.21015248]
[1765495543864,0.04688689,136.08,136.06,6.6133]
[1765495544164,0.04688689,136.08,136.07,3.16]
[1765495544661,0.04688689,136.08,136.07,10.01985104]
[1765495544864,0.04688689,136.08,136.07,16.63285104]
[1765495545465,0.04688689,136.08,136.07,9.773]
[1765495546863,62.52,136.12,136.08,3.16]
[1765495547057,62.52,136.12,136.1,3.16]
[1765495547963,62.57240775,136.12,136.1,3.20848007]
[1765495550870,65.86240775,136.12,136.1,3.20848007]
[1765495555284,65.86240775,136.12,136.1,9.81998007]
[1765495556984,0.05240775,136.12,136.11,9.8311]
[1765495557179,0.05240775,136.12,136.11,16.6987144]
[1765495557484,0.05240775,136.12,136.11,9.8311]
[1765495564397,6.0049516,136.12,136.11,6.6111]
[1765495564796,6.0049516,136.12,136.1,6.65998007]
[1765495564988,2.7149516,136.12,136.1,6.65998007]
[1765495565298,3.29,136.11,136.1,6.65998007]
[1765495569194,3.29,136.11,136.1,0.04848007]
[1765495569392,3.29,136.06,136.03,6.8676144]
[1765495569587,3.29,136.04,136.02,3.22]
[1765495569791,2.66254385,136.03,136.02,3.22]
[1765495570396,0.0548786,136.04,136.03,3.22]
[1765495580594,3.35,136.03,136.01,0.05377746]
[1765495580795,3.35,136.02,136.01,0.05377746]
[1765495581302,7.51308677,136.03,136.01,3.39377746]
[1765495581504,3.35,136.03,136.01,3.39377746]
[1765495584802,65.9248786,136.04,136.01,3.39377746]
[1765495586206,3.35,136.03,136.01,3.39377746]
[1765495586506,3.35,136.02,136.01,0.05377746]
[1765495587302,62.5748786,136.04,136.01,3.39377746]
[1765495587509,65.9248786,136.04,136.01,3.39377746]
[1765495587807,3.35,136.03,136.01,3.39377746]
[1765495588908,3.35,136.03,136.01,10.00967746]
[1765495592811,62.5748786,136.04,136.03,3.34]
[1765495594511,62.5748786,136.04,136.01,0.05377746]
[1765495594512,3.35,136.03,136.01,3.39377746]
[1765495595908,3.35,136.03,136.01,0.05377746]
[1765495596209,3.35,136.03,136.01,3.39377746]
[1765495599109,3.35,136.03,136.01,10.00967746]
[1765495599409,70.08796537,136.04,136.02,3.34]
[1765495602809,65.9248786,136.04,136.02,3.34]
[1765495604503,62.5748786,136.04,136.02,9.9552]
[1765495604709,0.0548786,136.04,136.03,3.34]
[1765495606115,0.0548786,136.04,136.03,9.9549]
[1765495607616,62.54,136.09,136.07,3.34]
[1765495607917,7.51308677,136.12,136.07,3.34]
[1765495607918,3.35,136.11,136.07,3.34]
[1765495608616,3.40179364,136.1,136.08,0.05492781]
[1765495611720,0.05179364,136.1,136.09,3.35]
[1765495619922,0.05179364,136.1,136.09,9.962]
[1765495622619,3.18179364,136.1,136.08,3.40492781]
[1765495624027,3.18179364,136.1,136.08,10.01742781]
[1765495627127,3.18179364,136.1,136.09,3.35]
[1765495627628,0.05179364,136.1,136.09,9.962]
[1765495630028,3.13,136.13,136.11,3.35]
[1765495630225,3.13,136.16,136.11,3.35]
[1765495631023,3.17095725,136.15,136.13,3.35]
[1765495631932,3.17095725,136.15,136.13,9.9599]
[1765495632433,3.17095725,136.15,136.13,6.6099]
[1765495632624,3.17095725,136.15,136.13,9.9599]
[1765495633635,0.04095725,136.15,136.14,9.9596]
[1765495635234,3.13,136.18,136.16,9.9586]
[1765495635726,3.13,136.18,136.16,6.6086]
[1765495636233,3.13,136.18,136.16,6.6629062]
[1765495636832,3.13,136.18,136.16,0.0543062]
[1765495637534,7.29308677,136.17,136.16,0.0543062]
[1765495637921,3.13,136.17,136.16,0.0543062]
[1765495638232,7.29308677,136.17,136.16,0.0543062]
[1765495640630,3.13,136.17,136.16,0.0543062]
[1765495640829,5.78968349,136.17,136.16,0.0543062]
[1765495648840,3.23,136.16,136.11,3.34]
[1765495649045,2.65968349,136.13,136.11,3.34]
[1765495649343,2.65968349,136.13,136.12,9.9506]
[1765495649742,2.70781489,136.14,136.12,9.9506]
[1765495650439,5.93781489,136.14,136.12,9.9506]
[1765495652443,3.23,136.13,136.11,0.05316696]
[1765495652747,5.88968349,136.12,136.11,0.05316696]
[1765495657436,2.65968349,136.12,136.11,10.00426696]
[1765495657748,5.93781489,136.14,136.12,3.34]
[1765495658148,2.70781489,136.14,136.12,3.34]
[1765495660051,2.70781489,136.14,136.13,9.9501]
[1765495662454,3.23,136.13,136.11,10.00376696]
[1765495663253,2.70781489,136.14,136.12,3.34]
[1765495663254,5.93781489,136.14,136.12,3.34]
[1765495666156,3.23,136.13,136.11,10.00376696]
[1765495666351,3.23,136.13,136.11,6.66376696]
[1765495666557,3.23,136.13,136.11,10.00376696]
[1765495669658,5.79781489,136.14,136.12,3.17]
[1765495671452,3.09,136.13,136.11,9.83376696]
[1765495672661,2.65968349,136.12,136.11,0.05316696]
[1765495672857,5.74968349,136.12,136.11,0.05316696]
[1765495675359,3.09,136.13,136.11,3.22316696]
[1765495680064,3.09,136.13,136.11,0.05316696]
[1765495680763,5.75968349,136.12,136.11,0.05316696]
[1765495682460,3.1,136.12,136.11,0.05316696]
[1765495682867,2.65968349,136.13,136.11,0.05316696]
[1765495683070,2.65968349,136.13,136.11,3.27316696]
[1765495683071,5.75968349,136.13,136.11,3.27316696]
[1765495684666,0.0481314,136.14,136.11,3.27316696]
[1765495684871,0.0481314,136.14,136.12,3.22]
[1765495685865,0.0481314,136.14,136.13,9.8301]
[1765495691271,63.79851868,136.19,136.13,3.22]
[1765495691473,3.1,136.18,136.15,3.22]
[1765495691868,3.1,136.16,136.14,6.6092]
[1765495692069,3.1,136.16,136.14,9.8292]
[1765495692582,3.1,136.16,136.14,9.8756211]
[1765495694181,3.1,136.16,136.14,6.6556211]
[1765495694676,3.1,136.16,136.14,9.8756211]
[1765495695279,3.1,136.16,136.14,6.6556211]
[1765495695571,5.75968349,136.15,136.14,0.0464211]
[1765495698478,3.1,136.14,136.09,6.86331935]
[1765495698681,5.75968349,136.1,136.08,3.22]
[1765495699470,5.80632267,136.1,136.08,3.2712403]
[1765495699873,5.80632267,136.1,136.08,9.8836403]
[1765495700777,3.14663918,136.1,136.08,9.8836403]
[1765495703386,3.14663918,136.1,136.08,3.2712403]
[1765495705790,3.14663918,136.1,136.09,3.33]
[1765495705791,0.04663918,136.1,136.09,3.33]
[1765495706892,0.04663918,136.1,136.09,9.942]
[1765495711088,0.04663918,136.1,136.09,3.33]
[1765495711295,3.12663918,136.1,136.08,3.3812403]
[1765495711794,0.04663918,136.1,136.08,3.3812403]
[1765495713091,0.04663918,136.1,136.08,9.9937403]
[1765495713299,0.04663918,136.1,136.09,3.33]
[1765495716191,3.12663918,136.1,136.08,3.3812403]
[1765495716395,0.04663918,136.1,136.08,3.3812403]
[1765495718691,0.04663918,136.1,136.08,9.9937403]
[1765495719196,0.04663918,136.1,136.09,3.33]
[1765495720291,0.04663918,136.1,136.09,9.942]
[1765495723301,0.04663918,136.1,136.09,3.33]
[1765495723502,3.12663918,136.1,136.08,3.3812403]
[1765495724589,0.04663918,136.1,136.08,3.3812403]
[1765495727196,3.12663918,136.1,136.08,3.3812403]
[1765495729805,0.04663918,136.1,136.08,3.3812403]
[1765495731106,3.10663918,136.1,136.08,3.3812403]
[1765495731905,9.71823918,136.1,136.08,3.3812403]
[1765495732300,3.06,136.09,136.08,3.3812403]
[1765495733515,3.06,136.09,136.08,0.0512403]
[1765495734813,3.06,136.09,136.08,3.3712403]
[1765495737510,0.04663918,136.1,136.08,3.3712403]
[1765495737715,3.10663918,136.1,136.08,3.3712403]
[1765495743200,3.10663918,136.1,136.08,0.0512403]
[1765495743404,7.22015481,136.09,136.08,0.0512403]
[1765495747218,0.04663918,136.1,136.08,3.3712403]
[1765495747417,3.10663918,136.1,136.08,3.3712403]
[1765495748722,0.04663918,136.1,136.08,3.3712403]
[1765495748918,3.10663918,136.1,136.08,3.3712403]
[1765495750014,3.10663918,136.1,136.08,0.0512403]
[1765495753622,9.71823918,136.1,136.08,0.0512403]
[1765495753818,3.06,136.09,136.08,0.0512403]
[1765495762230,9.672,136.09,136.08,0.0512403]
[1765495762432,13.83215481,136.09,136.08,0.0512403]
[1765495762730,12.33561597,136.09,136.08,0.0512403]
[1765495768236,74.85561597,136.09,136.08,0.0512403]
[1765495778052,3.29,136.06,136.05,3.29]
[1765495780152,12.6213164,136.07,136.05,3.29]
[1765495782749,6.0078164,136.07,136.05,3.29]
[1765495783556,3.29,136.06,136.05,3.29]
[1765495784756,6.0078164,136.07,136.05,3.29]
[1765495789562,3.34420043,136.07,136.05,3.29]
[1765495789762,2.66361597,136.06,136.05,3.29]
[1765495791766,6.04361597,136.06,136.05,3.29]
[1765495795871,0.05420043,136.07,136.05,10.17107181]
[1765495796071,0.05420043,136.07,136.06,3.37]
[1765495797268,0.05420043,136.07,136.06,10.25107181]
[1765495798069,0.05420043,136.07,136.06,3.37]
[1765495798266,0.05420043,136.07,136.06,10.25107181]
[1765495798466,0.05420043,136.07,136.06,3.37]
[1765495801071,0.05420043,136.07,136.06,9.9835]
[1765495801274,0.05420043,136.07,136.06,16.86457181]
[1765495801767,6.84641063,136.14,136.1,3.37]
[1765495801768,3.38,136.13,136.1,3.37]
[1765495801972,6.6096,136.14,136.1,3.37]
[1765495801973,6.04361597,136.12,136.1,3.37]
[1765495802170,3.38,136.11,136.09,10.24930249]
[1765495802469,3.38,136.09,136.07,3.37]
[1765495802674,6.04361597,136.08,136.07,3.4230454]
[1765495802871,6.04361597,136.08,136.07,0.0530454]
[1765495803471,6.04361597,136.08,136.07,3.4230454]
[1765495805572,0.04963577,136.09,136.08,3.37]
[1765495807576,2.71325174,136.09,136.08,3.37]
[1765495812082,6.09325174,136.09,136.07,3.4230454]
[1765495813378,3.38,136.08,136.07,3.4230454]
[1765495815579,3.38,136.08,136.07,0.0530454]
[1765495816683,6.04361597,136.08,136.07,0.0530454]
[1765495819076,3.38,136.08,136.07,0.0530454]
[1765495819875,3.38,136.08,136.07,3.4230454]
[1765495823184,3.38,136.08,136.07,0.0530454]
[1765495823876,0.04963577,136.09,136.07,3.4230454]
[1765495824183,0.04963577,136.09,136.08,3.37]
[1765495824986,0.04963577,136.09,136.08,9.9825]
[1765495826581,3.19963577,136.09,136.07,0.0530454]
[1765495827084,7.30836376,136.08,136.07,0.0530454]
[1765495830988,3.15,136.08,136.07,0.0530454]
[1765495843015,3.15,136.08,136.02,10.24930249]
[1765495843303,3.15,136.03,136.0,10.24930249]
[1765495843497,3.15,136.03,136.0,3.37]
[1765495844103,0.04734212,136.03,136.0,3.41641977]
[1765495844291,0.04734212,136.03,136.01,6.87930249]
[1765495844495,0.04734212,136.03,136.02,3.37]
[1765495845600,0.04734212,136.03,136.02,9.9854]
[1765495845800,3.19734212,136.03,136.02,6.6154]
[1765495847402,3.19734212,136.03,136.01,3.37]
[1765495848398,3.19734212,136.03,136.01,9.9859]
[1765495848603,3.19734212,136.03,136.01,6.6159]
[1765495848803,3.19734212,136.03,136.01,9.8059]
[1765495849205,0.04734212,136.03,136.02,3.19]
[1765495855903,3.23,136.07,136.05,3.19]
[1765495856104,65.75,136.08,136.05,3.19]
[1765495857005,65.80194706,136.08,136.05,3.24590315]
[1765495857505,3.23,136.07,136.05,3.24590315]
[1765495858806,3.23,136.07,136.05,0.05590315]
[1765495860308,9.843,136.07,136.05,0.05590315]
[1765495860508,3.23,136.06,136.05,0.05590315]
[1765495861315,3.23,136.13,136.06,3.19]
[1765495861620,3.23,136.13,136.07,3.19]
[1765495861917,4.50908259,136.13,136.07,3.19]
[1765495862218,3.23,136.12,136.09,3.19]
[1765495862406,3.23,136.12,136.09,3.24042498]
[1765495863316,3.23,136.12,136.09,0.05042498]
[1765495865319,3.23,136.12,136.09,3.24042498]
[1765495875036,1.27908259,136.13,136.1,3.19]
[1765495875326,4.50908259,136.13,136.1,3.19]
[1765495875834,4.50908259,136.13,136.09,0.05042498]
[1765495875835,3.23,136.12,136.09,3.24042498]
[1765495876619,3.23,136.12,136.09,0.05042498]
[1765495878627,3.1,136.1,136.09,0.05042498]
[1765495879336,3.09,136.09,136.03,3.13]
[1765495879537,3.09,136.08,136.03,3.13]
[1765495880142,3.14265505,136.07,136.05,3.13]
[1765495880540,0.05265505,136.07,136.05,3.13]
[1765495881034,3.14265505,136.07,136.05,3.13]
[1765495881935,3.14265505,136.07,136.05,9.744]
[1765495884343,0.05265505,136.07,136.05,9.744]
[1765495886243,0.05265505,136.07,136.06,3.13]
[1765495886747,0.05265505,136.07,136.06,9.7435]
[1765495892848,2.66301754,136.11,136.08,6.6124]
[1765495893044,2.66301754,136.11,136.04,102.9390691]
[1765495893045,3.94210013,136.13,136.09,3.13]
[1765495893250,3.09,136.12,136.09,3.13]
[1765495893845,3.09,136.12,136.09,3.18279691]
[1765495894048,3.09,136.12,136.1,3.13]
[1765495894452,3.09,136.12,136.1,9.7415]
[1765495896250,5.75301754,136.11,136.09,0.05279691]
[1765495896555,5.75301754,136.11,136.09,3.18279691]
[1765495896942,5.75301754,136.11,136.09,9.79479691]
[1765495900762,5.75301754,136.12,136.1,3.13]
[1765495901056,5.75301754,136.12,136.1,9.7415]
[1765495901361,2.66301754,136.12,136.11,3.13]
[1765495901758,1.27908259,136.13,136.11,9.7411]
[1765495902151,1.27908259,136.13,136.12,3.13]
[1765495902356,3.09,136.14,136.12,9.7406]
[1765495905360,7.03184161,136.15,136.13,3.13]
[1765495905664,7.03184161,136.15,136.13,3.18531859]